[Event "November 21 Early 2023"]
[Site "https://www.chess.com"]
[Date "2023.11.21"]
[Round "11"]
[White "Aradhya, Garg"]
[Black "Shubenkova, Veronika"]
[Result "0-1"]
[Board "46"]
[TimeControl "180+1"]
[WhiteFideId "25006746"]
[BlackFideId "44124040"]
[WhiteElo "2323"]
[BlackElo "1967"]
[WhiteTeam "IND"]
[BlackTeam "RUS"]
[WhiteClock "0:01:39"]
[BlackClock "0:01:01"]

1. d4 {[%clk 0:03:00]}  d5 {[%clk 0:02:59]} 2. Nf3 {[%clk 0:03:01]}  e6 {[%clk 0:03:00]} 3. c4 {[%clk 0:02:59]}  f5 {[%clk 0:03:00]} 4. Nc3 {[%clk 0:02:58]}  Nf6 {[%clk 0:03:00]} 5. Bf4 {[%clk 0:02:59]}  c6 {[%clk 0:03:00]} 6. e3 {[%clk 0:02:59]}  Bd6 {[%clk 0:03:01]} 7. Bxd6 {[%clk 0:02:59]}  Qxd6 {[%clk 0:03:01]} 8. Rc1 {[%clk 0:02:59]}  Nbd7 {[%clk 0:03:01]} 9. Bd3 {[%clk 0:02:58]}  O-O {[%clk 0:03:01]} 10. cxd5 {[%clk 0:02:59]}  Nxd5 {[%clk 0:03:01]} 11. O-O {[%clk 0:02:58]}  a5 {[%clk 0:02:58]} 12. e4 {[%clk 0:02:57]}  Nxc3 {[%clk 0:02:58]} 13. bxc3 {[%clk 0:02:53]}  fxe4 {[%clk 0:02:58]} 14. Bxe4 {[%clk 0:02:53]}  Nf6 {[%clk 0:02:57]} 15. Bb1 {[%clk 0:02:52]}  Bd7 {[%clk 0:02:57]} 16. Re1 {[%clk 0:02:52]}  a4 {[%clk 0:02:53]} 17. Ne5 {[%clk 0:02:49]}  Be8 {[%clk 0:02:53]} 18. Re3 {[%clk 0:02:46]}  Bh5 {[%clk 0:02:52]} 19. g4 {[%clk 0:02:45]}  Be8 {[%clk 0:02:29]} 20. Rh3 {[%clk 0:02:07]}  g6 {[%clk 0:02:26]} 21. Qd2 {[%clk 0:02:07]}  b5 {[%clk 0:02:23]} 22. Qh6 {[%clk 0:02:07]}  Ra7 {[%clk 0:02:19]} 23. Bxg6 {[%clk 0:01:58]}  Bxg6 {[%clk 0:02:16]} 24. Nxg6 {[%clk 0:01:58]}  hxg6 {[%clk 0:01:32]} 25. g5 {[%clk 0:01:56]}  Rh7 {[%clk 0:01:28]} 26. Qxg6+ {[%clk 0:01:56]}  Rg7 {[%clk 0:01:28]} 27. Qh6 {[%clk 0:01:56]}  Qf4 {[%clk 0:01:24]} 28. g6 {[%clk 0:01:51]}  Qxh6 {[%clk 0:01:21]} 29. Rxh6 {[%clk 0:01:51]}  Ng4 {[%clk 0:01:21]} 30. Rh3 {[%clk 0:01:50]}  Rxg6 {[%clk 0:01:20]} 31. Rg3 {[%clk 0:01:50]}  Kh7 {[%clk 0:01:14]} 32. c4 {[%clk 0:01:50]}  b4 {[%clk 0:01:14]} 33. Rb1 {[%clk 0:01:49]}  Rb8 {[%clk 0:01:06]} 34. Re1 {[%clk 0:01:41]}  Nf6 {[%clk 0:01:03]} 35. Rxe6 {[%clk 0:01:38]}  Rxg3+ {[%clk 0:01:02]} 36. hxg3 {[%clk 0:01:38]}  b3 {[%clk 0:01:03]} 37. axb3 {[%clk 0:01:38]}  axb3 {[%clk 0:01:00]} 38. Re1 {[%clk 0:01:39]}  b2 {[%clk 0:01:01]} 39. Rb1 {[%clk 0:01:39]}  Ne4 {[%clk 0:01:01]} 0-1

[Event "November 21 Early 2023"]
[Site "https://www.chess.com"]
[Date "2023.11.21"]
[Round "11"]
[White "Mohammad Fahad, Rahman"]
[Black "Shuvalov, Evgenij"]
[Result "0-1"]
[Board "47"]
[TimeControl "180+1"]
[WhiteFideId "10207791"]
[BlackFideId "4187237"]
[WhiteElo "2339"]
[BlackElo "2059"]
[WhiteTeam "BAN"]
[BlackTeam "FID"]
[WhiteClock "0:00:08"]
[BlackClock "0:00:13"]

1. e4 {[%clk 0:03:00]}  e6 {[%clk 0:02:52]} 2. d4 {[%clk 0:03:00]}  d5 {[%clk 0:02:52]} 3. Nd2 {[%clk 0:03:01]}  c5 {[%clk 0:02:52]} 4. Ngf3 {[%clk 0:02:56]}  Nc6 {[%clk 0:02:51]} 5. exd5 {[%clk 0:02:54]}  exd5 {[%clk 0:02:52]} 6. Bb5 {[%clk 0:02:52]}  Qe7+ {[%clk 0:02:52]} 7. Be2 {[%clk 0:02:50]}  Qc7 {[%clk 0:02:51]} 8. O-O {[%clk 0:02:49]}  Nf6 {[%clk 0:02:51]} 9. Re1 {[%clk 0:02:46]}  Be6 {[%clk 0:02:50]} 10. Bb5 {[%clk 0:02:43]}  O-O-O {[%clk 0:02:47]} 11. dxc5 {[%clk 0:01:48]}  Bxc5 {[%clk 0:02:45]} 12. Nb3 {[%clk 0:01:48]}  Bb6 {[%clk 0:02:36]} 13. h3 {[%clk 0:01:43]}  Bxh3 {[%clk 0:02:29]} 14. gxh3 {[%clk 0:01:35]}  Qg3+ {[%clk 0:02:28]} 15. Kh1 {[%clk 0:01:35]}  Bxf2 {[%clk 0:02:22]} 16. Rf1 {[%clk 0:01:28]}  Ne4 {[%clk 0:02:19]} 17. Nh2 {[%clk 0:01:21]}  Ne5 {[%clk 0:01:49]} 18. Bd3 {[%clk 0:00:49]}  Qxh3 {[%clk 0:01:02]} 19. Bxe4 {[%clk 0:00:49]}  dxe4 {[%clk 0:01:03]} 20. Qe2 {[%clk 0:00:49]}  e3 {[%clk 0:00:56]} 21. Nc5 {[%clk 0:00:21]}  Rd4 {[%clk 0:00:48]} 22. Qb5 {[%clk 0:00:20]}  b6 {[%clk 0:00:18]} 23. Na6 {[%clk 0:00:20]}  Rh4 {[%clk 0:00:14]} 24. Qd5 {[%clk 0:00:08]}  Qxh2# {[%clk 0:00:13]} 0-1

[Event "November 21 Early 2023"]
[Site "https://www.chess.com"]
[Date "2023.11.21"]
[Round "11"]
[White "aghasiyevkamal"]
[Black "Timerkhanov, Alexander"]
[Result "1/2-1/2"]
[Board "48"]
[TimeControl "180+1"]
[BlackFideId "24177938"]
[WhiteElo "2562"]
[BlackElo "2278"]
[BlackTeam "RUS"]
[WhiteClock "0:00:08"]
[BlackClock "0:00:59"]

1. e4 {[%clk 0:02:59]}  c6 {[%clk 0:03:00]} 2. d4 {[%clk 0:02:58]}  d5 {[%clk 0:03:01]} 3. exd5 {[%clk 0:02:58]}  cxd5 {[%clk 0:03:02]} 4. Bd3 {[%clk 0:02:57]}  Nc6 {[%clk 0:03:02]} 5. c3 {[%clk 0:02:56]}  Nf6 {[%clk 0:03:02]} 6. h3 {[%clk 0:02:56]}  g6 {[%clk 0:03:02]} 7. Nf3 {[%clk 0:02:56]}  Bf5 {[%clk 0:03:02]} 8. Be2 {[%clk 0:02:56]}  Qc7 {[%clk 0:03:03]} 9. O-O {[%clk 0:02:56]}  Bg7 {[%clk 0:03:03]} 10. Be3 {[%clk 0:02:40]}  O-O {[%clk 0:03:02]} 11. Qc1 {[%clk 0:02:41]}  Rfe8 {[%clk 0:03:01]} 12. Bf4 {[%clk 0:02:41]}  Qc8 {[%clk 0:02:56]} 13. Nbd2 {[%clk 0:02:38]}  Ne4 {[%clk 0:02:57]} 14. Re1 {[%clk 0:02:27]}  a6 {[%clk 0:02:41]} 15. Nf1 {[%clk 0:01:57]}  b5 {[%clk 0:02:26]} 16. Ne3 {[%clk 0:01:57]}  Be6 {[%clk 0:02:27]} 17. Bd3 {[%clk 0:01:55]}  f5 {[%clk 0:02:24]} 18. Bc2 {[%clk 0:00:45]}  Bf7 {[%clk 0:02:23]} 19. Bb3 {[%clk 0:00:44]}  Qd7 {[%clk 0:02:11]} 20. Ng5 {[%clk 0:00:25]}  Nxg5 {[%clk 0:02:09]} 21. Bxg5 {[%clk 0:00:26]}  e5 {[%clk 0:02:09]} 22. dxe5 {[%clk 0:00:24]}  Nxe5 {[%clk 0:02:10]} 23. Rd1 {[%clk 0:00:22]}  Nc4 {[%clk 0:02:04]} 24. Nxc4 {[%clk 0:00:21]}  bxc4 {[%clk 0:02:04]} 25. Bxc4 {[%clk 0:00:21]}  Rec8 {[%clk 0:01:58]} 26. Bb3 {[%clk 0:00:20]}  d4 {[%clk 0:01:57]} 27. Qd2 {[%clk 0:00:17]}  Bxb3 {[%clk 0:01:54]} 28. axb3 {[%clk 0:00:18]}  Qf7 {[%clk 0:01:53]} 29. cxd4 {[%clk 0:00:15]}  Qxb3 {[%clk 0:01:54]} 30. d5 {[%clk 0:00:14]}  Qxb2 {[%clk 0:01:51]} 31. Qe3 {[%clk 0:00:11]}  Re8 {[%clk 0:01:48]} 32. Qd3 {[%clk 0:00:09]}  Bd4 {[%clk 0:01:43]} 33. Bh4 {[%clk 0:00:05]}  Re2 {[%clk 0:01:38]} 34. Rf1 {[%clk 0:00:04]}  Rd2 {[%clk 0:01:37]} 35. Qf3 {[%clk 0:00:03]}  Qb6 {[%clk 0:01:18]} 36. Rab1 {[%clk 0:00:04]}  Qd6 {[%clk 0:01:18]} 37. Bg3 {[%clk 0:00:04]}  Be5 {[%clk 0:01:11]} 38. Bxe5 {[%clk 0:00:03]}  Qxe5 {[%clk 0:01:12]} 39. Rfe1 {[%clk 0:00:04]}  Qxd5 {[%clk 0:01:12]} 40. Qxd5+ {[%clk 0:00:03]}  Rxd5 {[%clk 0:01:13]} 41. Re7 {[%clk 0:00:03]}  f4 {[%clk 0:00:57]} 42. Rbb7 {[%clk 0:00:03]}  Rh5 {[%clk 0:00:57]} 43. Kh2 {[%clk 0:00:02]}  a5 {[%clk 0:00:58]} 44. g4 {[%clk 0:00:03]}  fxg3+ {[%clk 0:00:57]} 45. fxg3 {[%clk 0:00:03]}  a4 {[%clk 0:00:58]} 46. g4 {[%clk 0:00:04]}  Rh6 {[%clk 0:00:56]} 47. Ra7 {[%clk 0:00:04]}  Rxa7 {[%clk 0:00:55]} 48. Rxa7 {[%clk 0:00:05]}  g5 {[%clk 0:00:55]} 49. Rxa4 {[%clk 0:00:05]}  Rc6 {[%clk 0:00:55]} 50. Ra2 {[%clk 0:00:05]}  Kg7 {[%clk 0:00:55]} 51. Rf2 {[%clk 0:00:05]}  Kg6 {[%clk 0:00:55]} 52. Kg2 {[%clk 0:00:06]}  Rc3 {[%clk 0:00:55]} 53. Rf3 {[%clk 0:00:06]}  Rc6 {[%clk 0:00:56]} 54. Kg3 {[%clk 0:00:06]}  Re6 {[%clk 0:00:56]} 55. Rd3 {[%clk 0:00:06]}  h5 {[%clk 0:00:57]} 56. gxh5+ {[%clk 0:00:06]}  Kxh5 {[%clk 0:00:57]} 57. Rf3 {[%clk 0:00:07]}  Re4 {[%clk 0:00:57]} 58. Rd3 {[%clk 0:00:07]}  Ra4 {[%clk 0:00:57]} 59. Rf3 {[%clk 0:00:06]}  Re4 {[%clk 0:00:56]} 60. Rd3 {[%clk 0:00:06]}  Rf4 {[%clk 0:00:56]} 61. Rf3 {[%clk 0:00:06]}  Rxf3+ {[%clk 0:00:57]} 62. Kxf3 {[%clk 0:00:07]}  Kh4 {[%clk 0:00:57]} 63. Kg2 {[%clk 0:00:08]}  g4 {[%clk 0:00:58]} 64. hxg4 {[%clk 0:00:08]}  Kxg4 {[%clk 0:00:59]} 1/2-1/2

[Event "November 21 Early 2023"]
[Site "https://www.chess.com"]
[Date "2023.11.21"]
[Round "11"]
[White "Alinasab, Mobina"]
[Black "Sadykov, Ramil"]
[Result "0-1"]
[Board "49"]
[TimeControl "180+1"]
[WhiteFideId "12528897"]
[BlackFideId "24113590"]
[WhiteElo "2052"]
[BlackElo "2245"]
[WhiteTeam "IRI"]
[BlackTeam "FID"]
[WhiteClock "0:00:00"]
[BlackClock "0:00:12"]

1. Nf3 {[%clk 0:03:00]}  d6 {[%clk 0:02:55]} 2. d4 {[%clk 0:03:00]}  g6 {[%clk 0:02:53]} 3. b3 {[%clk 0:02:59]}  Bg7 {[%clk 0:02:53]} 4. Bb2 {[%clk 0:03:00]}  c5 {[%clk 0:02:53]} 5. g3 {[%clk 0:02:59]}  Nc6 {[%clk 0:02:51]} 6. Bg2 {[%clk 0:02:59]}  cxd4 {[%clk 0:02:46]} 7. Nxd4 {[%clk 0:02:59]}  Qb6 {[%clk 0:02:45]} 8. c3 {[%clk 0:02:56]}  Nf6 {[%clk 0:02:39]} 9. O-O {[%clk 0:02:56]}  O-O {[%clk 0:02:39]} 10. Nxc6 {[%clk 0:02:56]}  bxc6 {[%clk 0:02:39]} 11. c4 {[%clk 0:02:56]}  Rb8 {[%clk 0:02:35]} 12. Nc3 {[%clk 0:02:56]}  Rd8 {[%clk 0:02:30]} 13. Rc1 {[%clk 0:02:55]}  c5 {[%clk 0:02:24]} 14. Nd5 {[%clk 0:02:47]}  Nxd5 {[%clk 0:02:23]} 15. Bxg7 {[%clk 0:02:47]}  Ne3 {[%clk 0:02:14]} 16. fxe3 {[%clk 0:02:47]}  Kxg7 {[%clk 0:02:14]} 17. Bd5 {[%clk 0:02:41]}  f6 {[%clk 0:02:07]} 18. h4 {[%clk 0:02:34]}  Bg4 {[%clk 0:02:01]} 19. Rf4 {[%clk 0:02:31]}  h5 {[%clk 0:02:01]} 20. Qd2 {[%clk 0:02:27]}  a5 {[%clk 0:01:55]} 21. Rcf1 {[%clk 0:02:01]}  a4 {[%clk 0:01:39]} 22. bxa4 {[%clk 0:01:58]}  Qb2 {[%clk 0:01:39]} 23. Qxb2 {[%clk 0:01:26]}  Rxb2 {[%clk 0:01:40]} 24. Ra1 {[%clk 0:01:26]}  Rd7 {[%clk 0:01:32]} 25. Bc6 {[%clk 0:01:16]}  Ra7 {[%clk 0:01:27]} 26. Rff1 {[%clk 0:01:16]}  Rxe2 {[%clk 0:01:22]} 27. Rfe1 {[%clk 0:01:14]}  Rxe1+ {[%clk 0:01:16]} 28. Rxe1 {[%clk 0:01:15]}  Bd7 {[%clk 0:01:16]} 29. Bb5 {[%clk 0:00:52]}  Bxb5 {[%clk 0:01:00]} 30. axb5 {[%clk 0:00:53]}  Rxa2 {[%clk 0:00:58]} 31. Rb1 {[%clk 0:00:51]}  Kf7 {[%clk 0:00:53]} 32. e4 {[%clk 0:00:21]}  Ke6 {[%clk 0:00:52]} 33. Kf1 {[%clk 0:00:15]}  Kd7 {[%clk 0:00:51]} 34. Rb3 {[%clk 0:00:08]}  Kc7 {[%clk 0:00:42]} 35. g4 {[%clk 0:00:02]}  hxg4 {[%clk 0:00:22]} 36. Rg3 {[%clk 0:00:01]}  f5 {[%clk 0:00:22]} 37. exf5 {[%clk 0:00:01]}  gxf5 {[%clk 0:00:23]} 38. Rg2 {[%clk 0:00:02]}  Ra1+ {[%clk 0:00:20]} 39. Kf2 {[%clk 0:00:01]}  Rh1 {[%clk 0:00:20]} 40. Kg3 {[%clk 0:00:02]}  e5 {[%clk 0:00:13]} 41. Rh2 {[%clk 0:00:02]}  Rg1+ {[%clk 0:00:12]} 42. Kf2 {[%clk 0:00:02]}  Ra1 {[%clk 0:00:11]} 43. h5 {[%clk 0:00:00]}  f4 {[%clk 0:00:12]} 0-1

[Event "November 21 Early 2023"]
[Site "https://www.chess.com"]
[Date "2023.11.21"]
[Round "11"]
[White "Arhan_Anand"]
[Black "Hajiyev, Kanan"]
[Result "1-0"]
[Board "52"]
[TimeControl "180+1"]
[BlackFideId "13404148"]
[WhiteElo "2655"]
[BlackElo "2102"]
[BlackTeam "AZE"]
[WhiteClock "0:01:16"]
[BlackClock "0:00:07"]

1. d4 {[%clk 0:03:00]}  c6 {[%clk 0:03:00]} 2. c4 {[%clk 0:03:00]}  d5 {[%clk 0:03:01]} 3. cxd5 {[%clk 0:02:59]}  cxd5 {[%clk 0:03:02]} 4. Nc3 {[%clk 0:03:00]}  Nf6 {[%clk 0:03:03]} 5. Bf4 {[%clk 0:02:59]}  a6 {[%clk 0:03:03]} 6. e3 {[%clk 0:02:59]}  Nc6 {[%clk 0:03:04]} 7. Nf3 {[%clk 0:02:59]}  Bg4 {[%clk 0:03:04]} 8. Bd3 {[%clk 0:02:56]}  e6 {[%clk 0:03:04]} 9. O-O {[%clk 0:02:56]}  Bd6 {[%clk 0:03:04]} 10. Bxd6 {[%clk 0:02:53]}  Qxd6 {[%clk 0:03:05]} 11. h3 {[%clk 0:02:53]}  Bh5 {[%clk 0:03:04]} 12. Be2 {[%clk 0:02:50]}  O-O {[%clk 0:03:03]} 13. Nd2 {[%clk 0:02:49]}  Bxe2 {[%clk 0:03:02]} 14. Qxe2 {[%clk 0:02:50]}  b5 {[%clk 0:03:02]} 15. Rac1 {[%clk 0:02:50]}  Rac8 {[%clk 0:03:01]} 16. a4 {[%clk 0:02:50]}  b4 {[%clk 0:02:57]} 17. Na2 {[%clk 0:02:50]}  Na5 {[%clk 0:02:47]} 18. Rc5 {[%clk 0:02:50]}  Rxc5 {[%clk 0:02:34]} 19. dxc5 {[%clk 0:02:49]}  Qxc5 {[%clk 0:02:35]} 20. Qxa6 {[%clk 0:02:49]}  Nc4 {[%clk 0:01:08]} 21. Rc1 {[%clk 0:02:42]}  Qa5 {[%clk 0:00:52]} 22. Qxa5 {[%clk 0:02:38]}  Nxa5 {[%clk 0:00:53]} 23. Nxb4 {[%clk 0:02:35]}  h5 {[%clk 0:00:43]} 24. Nd3 {[%clk 0:02:32]}  Rb8 {[%clk 0:00:43]} 25. b4 {[%clk 0:02:32]}  Ne4 {[%clk 0:00:36]} 26. Nf3 {[%clk 0:02:04]}  Nc4 {[%clk 0:00:36]} 27. Nd4 {[%clk 0:02:04]}  g6 {[%clk 0:00:31]} 28. Nc6 {[%clk 0:01:59]}  Rb7 {[%clk 0:00:24]} 29. a5 {[%clk 0:01:58]}  Rc7 {[%clk 0:00:21]} 30. b5 {[%clk 0:01:50]}  Ned6 {[%clk 0:00:14]} 31. Rb1 {[%clk 0:01:31]}  Nxb5 {[%clk 0:00:10]} 32. Rxb5 {[%clk 0:01:32]}  Rxc6 {[%clk 0:00:11]} 33. Nb4 {[%clk 0:01:32]}  Rc7 {[%clk 0:00:09]} 34. a6 {[%clk 0:01:33]}  Nd6 {[%clk 0:00:04]} 35. Rb6 {[%clk 0:01:32]}  Rd7 {[%clk 0:00:04]} 36. Nc6 {[%clk 0:01:28]}  Kg7 {[%clk 0:00:03]} 37. a7 {[%clk 0:01:28]}  Nc8 {[%clk 0:00:03]} 38. a8=Q {[%clk 0:01:27]}  Nxb6 {[%clk 0:00:04]} 39. Qa1+ {[%clk 0:01:26]}  Kh7 {[%clk 0:00:03]} 40. Ne5 {[%clk 0:01:23]}  Rc7 {[%clk 0:00:03]} 41. Qa5 {[%clk 0:01:23]}  Rc1+ {[%clk 0:00:01]} 42. Kh2 {[%clk 0:01:23]}  Nc4 {[%clk 0:00:02]} 43. Qc7 {[%clk 0:01:21]}  Nxe5 {[%clk 0:00:01]} 44. Qxc1 {[%clk 0:01:22]}  Kg7 {[%clk 0:00:02]} 45. Qb2 {[%clk 0:01:20]}  f6 {[%clk 0:00:02]} 46. Qb7+ {[%clk 0:01:20]}  Nf7 {[%clk 0:00:02]} 47. Qd7 {[%clk 0:01:19]}  e5 {[%clk 0:00:02]} 48. Qxd5 {[%clk 0:01:19]}  h4 {[%clk 0:00:03]} 49. Qe6 {[%clk 0:01:19]}  g5 {[%clk 0:00:04]} 50. Kg1 {[%clk 0:01:17]}  Nh6 {[%clk 0:00:04]} 51. Qe7+ {[%clk 0:01:17]}  Kg6 {[%clk 0:00:05]} 52. e4 {[%clk 0:01:18]}  Nf7 {[%clk 0:00:04]} 53. Qe8 {[%clk 0:01:18]}  Kg7 {[%clk 0:00:05]} 54. Kf1 {[%clk 0:01:17]}  Nd6 {[%clk 0:00:05]} 55. Qd7+ {[%clk 0:01:14]}  Nf7 {[%clk 0:00:06]} 56. Ke2 {[%clk 0:01:15]}  Kg6 {[%clk 0:00:07]} 57. Qf5+ {[%clk 0:01:14]}  Kg7 {[%clk 0:00:07]} 58. Kd3 {[%clk 0:01:15]}  Nh6 {[%clk 0:00:07]} 59. Qe6 {[%clk 0:01:15]}  Nf7 {[%clk 0:00:08]} 60. g3 {[%clk 0:01:15]}  Kg6 {[%clk 0:00:09]} 61. gxh4 {[%clk 0:01:15]}  gxh4 {[%clk 0:00:09]} 62. Qg4+ {[%clk 0:01:15]}  Ng5 {[%clk 0:00:10]} 63. Qxh4 {[%clk 0:01:16]}  Kf7 {[%clk 0:00:09]} 64. Qg4 {[%clk 0:01:16]}  Ne6 {[%clk 0:00:08]} 65. h4 {[%clk 0:01:15]}  Ke7 {[%clk 0:00:08]} 66. h5 {[%clk 0:01:15]}  Nf4+ {[%clk 0:00:08]} 67. Ke3 {[%clk 0:01:15]}  Kf7 {[%clk 0:00:09]} 68. Qxf4 {[%clk 0:01:14]}  exf4+ {[%clk 0:00:09]} 69. Kxf4 {[%clk 0:01:15]}  Ke6 {[%clk 0:00:08]} 70. h6 {[%clk 0:01:15]}  Kf7 {[%clk 0:00:07]} 71. Kf5 {[%clk 0:01:16]} 1-0

[Event "November 21 Early 2023"]
[Site "https://www.chess.com"]
[Date "2023.11.21"]
[Round "11"]
[White "Erzhanov, Arman"]
[Black "Skliarov, Viktor"]
[Result "1-0"]
[Board "53"]
[TimeControl "180+1"]
[WhiteFideId "4138821"]
[BlackFideId "14106736"]
[WhiteElo "2171"]
[BlackElo "2304"]
[WhiteTeam "KAZ"]
[BlackTeam "UKR"]
[WhiteClock "0:01:04"]
[BlackClock "0:00:08"]

1. e4 {[%clk 0:02:59]}  c5 {[%clk 0:03:00]} 2. Nf3 {[%clk 0:02:59]}  Nc6 {[%clk 0:03:00]} 3. Bb5 {[%clk 0:02:59]}  e6 {[%clk 0:03:00]} 4. b3 {[%clk 0:02:59]}  Nge7 {[%clk 0:02:59]} 5. Bb2 {[%clk 0:03:00]}  a6 {[%clk 0:03:00]} 6. Bxc6 {[%clk 0:03:00]}  Nxc6 {[%clk 0:03:00]} 7. O-O {[%clk 0:03:01]}  f6 {[%clk 0:02:59]} 8. Nh4 {[%clk 0:03:01]}  g6 {[%clk 0:02:55]} 9. f4 {[%clk 0:03:01]}  d5 {[%clk 0:02:14]} 10. f5 {[%clk 0:02:51]}  gxf5 {[%clk 0:01:40]} 11. exf5 {[%clk 0:02:32]}  e5 {[%clk 0:01:38]} 12. Qh5+ {[%clk 0:02:30]}  Kd7 {[%clk 0:01:37]} 13. Ng6 {[%clk 0:02:26]}  hxg6 {[%clk 0:00:50]} 14. Qxh8 {[%clk 0:02:25]}  g5 {[%clk 0:00:50]} 15. Nc3 {[%clk 0:02:18]}  Ne7 {[%clk 0:00:40]} 16. Qh7 {[%clk 0:01:57]}  Kc6 {[%clk 0:00:30]} 17. Qf7 {[%clk 0:01:48]}  Nxf5 {[%clk 0:00:25]} 18. g4 {[%clk 0:01:35]}  d4 {[%clk 0:00:23]} 19. Ne4 {[%clk 0:01:25]}  Qd5 {[%clk 0:00:12]} 20. Qxd5+ {[%clk 0:01:03]}  Kxd5 {[%clk 0:00:12]} 21. Nxf6+ {[%clk 0:01:04]}  Ke6 {[%clk 0:00:08]} 22. Rxf5 {[%clk 0:01:04]} 1-0

[Event "November 21 Early 2023"]
[Site "https://www.chess.com"]
[Date "2023.11.21"]
[Round "11"]
[White "Kazmin_Semyon"]
[Black "Starozhilov, Leonid"]
[Result "1-0"]
[Board "57"]
[TimeControl "180+1"]
[BlackFideId "14106752"]
[WhiteElo "2535"]
[BlackElo "2270"]
[BlackTeam "UKR"]
[WhiteClock "0:00:37"]
[BlackClock "0:00:00"]

1. e4 {[%clk 0:03:00]}  g6 {[%clk 0:02:58]} 2. d4 {[%clk 0:03:00]}  Bg7 {[%clk 0:02:59]} 3. Nc3 {[%clk 0:03:00]}  d6 {[%clk 0:02:59]} 4. Be3 {[%clk 0:03:01]}  a6 {[%clk 0:03:00]} 5. f3 {[%clk 0:03:01]}  b5 {[%clk 0:03:00]} 6. Qd2 {[%clk 0:03:01]}  Nd7 {[%clk 0:03:00]} 7. h4 {[%clk 0:03:02]}  h5 {[%clk 0:03:00]} 8. Nh3 {[%clk 0:03:02]}  Ngf6 {[%clk 0:03:01]} 9. Ng5 {[%clk 0:03:02]}  Nh7 {[%clk 0:03:01]} 10. Nxh7 {[%clk 0:03:01]}  Rxh7 {[%clk 0:03:02]} 11. g4 {[%clk 0:03:01]}  hxg4 {[%clk 0:02:59]} 12. fxg4 {[%clk 0:03:02]}  Nf6 {[%clk 0:03:00]} 13. g5 {[%clk 0:02:59]}  Nh5 {[%clk 0:02:56]} 14. Bg2 {[%clk 0:02:54]}  c6 {[%clk 0:02:55]} 15. O-O-O {[%clk 0:02:50]}  Qc7 {[%clk 0:02:45]} 16. Qf2 {[%clk 0:02:50]}  e6 {[%clk 0:02:31]} 17. Rhf1 {[%clk 0:02:36]}  Bb7 {[%clk 0:02:26]} 18. Bh3 {[%clk 0:02:28]}  Qe7 {[%clk 0:02:07]} 19. Ne2 {[%clk 0:02:20]}  Kf8 {[%clk 0:01:56]} 20. e5 {[%clk 0:02:07]}  Rd8 {[%clk 0:01:40]} 21. exd6 {[%clk 0:01:51]}  Rxd6 {[%clk 0:01:39]} 22. d5 {[%clk 0:01:52]}  cxd5 {[%clk 0:01:15]} 23. Bc5 {[%clk 0:01:51]}  Bh8 {[%clk 0:01:03]} 24. Nd4 {[%clk 0:01:43]}  Bc8 {[%clk 0:00:42]} 25. Qh2 {[%clk 0:01:27]}  e5 {[%clk 0:00:31]} 26. Bxc8 {[%clk 0:01:23]}  Kg8 {[%clk 0:00:30]} 27. Bxd6 {[%clk 0:01:15]}  Qxd6 {[%clk 0:00:30]} 28. Ne2 {[%clk 0:01:15]}  Rg7 {[%clk 0:00:24]} 29. Bg4 {[%clk 0:01:15]}  Rh7 {[%clk 0:00:17]} 30. Qf2 {[%clk 0:01:11]}  Qb4 {[%clk 0:00:08]} 31. Bxh5 {[%clk 0:01:08]}  gxh5 {[%clk 0:00:09]} 32. g6 {[%clk 0:01:05]}  fxg6 {[%clk 0:00:06]} 33. Qb6 {[%clk 0:01:01]}  Re7 {[%clk 0:00:03]} 34. Qxg6+ {[%clk 0:00:36]}  Bg7 {[%clk 0:00:00]} 35. Rxd5 {[%clk 0:00:37]} 1-0

[Event "November 21 Early 2023"]
[Site "https://www.chess.com"]
[Date "2023.11.21"]
[Round "11"]
[White "Jakubowski, Krzysztof"]
[Black "Pinheiro, Iung Alicio de O."]
[Result "0-1"]
[Board "59"]
[TimeControl "180+1"]
[WhiteFideId "1112848"]
[BlackFideId "2104350"]
[WhiteElo "2369"]
[BlackElo "2283"]
[WhiteTeam "POL"]
[BlackTeam "BRA"]
[WhiteClock "0:00:49"]
[BlackClock "0:00:18"]

1. e4 {[%clk 0:02:56]}  e5 {[%clk 0:02:56]} 2. Nf3 {[%clk 0:02:54]}  Nc6 {[%clk 0:02:57]} 3. Bc4 {[%clk 0:02:50]}  Nf6 {[%clk 0:02:55]} 4. Ng5 {[%clk 0:02:48]}  d5 {[%clk 0:02:53]} 5. exd5 {[%clk 0:02:48]}  b5 {[%clk 0:02:53]} 6. Bf1 {[%clk 0:02:46]}  Nd4 {[%clk 0:02:51]} 7. c3 {[%clk 0:02:44]}  Nxd5 {[%clk 0:02:51]} 8. Ne4 {[%clk 0:02:33]}  Qh4 {[%clk 0:02:20]} 9. Ng3 {[%clk 0:02:25]}  Bg4 {[%clk 0:01:50]} 10. f3 {[%clk 0:02:23]}  Nf5 {[%clk 0:01:28]} 11. Bxb5+ {[%clk 0:02:18]}  Kd8 {[%clk 0:01:28]} 12. O-O {[%clk 0:01:55]}  Nxg3 {[%clk 0:01:24]} 13. hxg3 {[%clk 0:01:53]}  Qxg3 {[%clk 0:01:23]} 14. fxg4 {[%clk 0:01:48]}  Bc5+ {[%clk 0:00:59]} 15. d4 {[%clk 0:01:47]}  exd4 {[%clk 0:00:57]} 16. Rf3 {[%clk 0:01:19]}  d3+ {[%clk 0:00:50]} 17. Kh1 {[%clk 0:01:16]}  Qxg4 {[%clk 0:00:21]} 18. Bxd3 {[%clk 0:00:49]}  Qh5+ {[%clk 0:00:18]} 0-1